[Event "DVM U12w 2023"]
[Site "Magdeburg"]
[Date "2023.12.28"]
[Round "3"]
[White "Albrecht, Sidney Jenna"]
[Black "Schirmbeck, Lilian"]
[Result "0-1"]
[WhiteElo "1188"]
[BlackElo "1585"]
[PlyCount "86"]
[EventDate "2022.12.27"]
[EventType "team-tourn"]
[EventRounds "7"]
[EventCountry "GER"]
[TimeControl "40/5400+30:1800+30"]
[WhiteClock "0:37:20"]
[BlackClock "0:39:09"]

1. c4 {[%emt 0:00:04]} e6 {[%emt 0:00:04]} 2. Nc3 {[%emt 0:01:01]} d5 {[%emt 0:00:08]} 3. b3 {[%emt 0:00:14]} d4 {[%emt 0:04:31]} 4. Nb5 {[%emt 0:04:24]} a6 {[%emt 0:00:55]} 5. Na3 {[%emt 0:00:14]} Nf6 {[%emt 0:00:50]} 6. Nf3 {[%emt 0:02:24]} c5 {[%emt 0:02:39]} 7. d3 {[%emt 0:00:36]} Nc6 {[%emt 0:01:44]} 8. g3 {[%emt 0:00:53]} Bd6 {[%emt 0:03:56]} 9. Bg2 {[%emt 0:01:57]} O-O {[%emt 0:00:54]} 10. O-O {[%emt 0:01:58]} Rb8 {[%emt 0:05:31]} 11. Nc2 {[%emt 0:01:51]} b5 {[%emt 0:05:24]} 12. e3 {[%emt 0:01:47]} e5 {[%emt 0:02:14]} 13. Nfxd4 {[%emt 0:10:32]} Nxd4 {[%emt 0:01:58]} 14. exd4 {[%emt 0:00:14]} exd4 {[%emt 0:00:12]} 15. Re1 {[%emt 0:01:20]} Bb7 {[%emt 0:05:03]} 16. Bxb7 {[%emt 0:02:45]} Rxb7 {[%emt 0:00:08]} 17. a3 {[%emt 0:01:52]} bxc4 {[%emt 0:02:14]} 18. dxc4 {[%emt 0:01:23]} Qd7 {[%emt 0:05:40]} 19. Qf3 {[%emt 0:06:58]} Rfb8 {[%emt 0:12:38]} 20. Rb1 {[%emt 0:06:10]} Ng4 {[%emt 0:03:02]} 21. Bf4 {[%emt 0:05:12]} Qf5 {[%emt 0:03:18]} 22. Re2 {[%emt 0:02:52]} Bxf4 {[%emt 0:02:43]} 23. Qxf4 {[%emt 0:00:35]} Qxf4 {[%emt 0:00:15]} 24. gxf4 {[%emt 0:00:08]} d3 {[%emt 0:00:04]} 25. Rd2 {[%emt 0:02:43]} dxc2 {[%emt 0:00:16]} 26. Rxc2 {[%emt 0:00:08]} Rxb3 {[%emt 0:00:07]} 27. Rxb3 {[%emt 0:00:25]} Rxb3 {[%emt 0:00:05]} 28. a4 {[%emt 0:00:41]} g6 {[%emt 0:00:14]} 29. Rd2 {[%emt 0:01:36]} Rb4 {[%emt 0:00:08]} 30. Rd6 {[%emt 0:03:42]} Rxa4 {[%emt 0:00:19]} 31. Kg2 {[%emt 0:00:57]} a5 {[%emt 0:00:31]} 32. Ra6 {[%emt 0:00:14]} Nh6 {[%emt 0:00:42]} 33. Kf3 {[%emt 0:00:52]} Nf5 {[%emt 0:00:17]} 34. Ke4 {[%emt 0:00:48]} Rxc4+ {[%emt 0:00:29]} 35. Kd5 {[%emt 0:00:10]} Rxf4 {[%emt 0:01:17]} 36. Rxa5 {[%emt 0:00:59]} Rxf2 {[%emt 0:00:26]} 37. Rxc5 {[%emt 0:00:32]} Rxh2 {[%emt 0:00:42]} 38. Ke5 {[%emt 0:00:24]} Kg7 {[%emt 0:00:12]} 39. Kf4 {[%emt 0:00:34]} h5 {[%emt 0:00:13]} 40. Kg5 {[%emt 0:01:03]} h4 {[%emt 0:00:16]} 41. Rc3 {[%emt 0:30:46]} Rg2+ {[%emt 0:30:20]} 42. Kf4 {[%emt 0:00:17]} Rg3 {[%emt 0:00:06]} 43. Rxg3 {[%emt 0:00:25]} hxg3 {[%emt 0:00:06] normal} 0-1

[Event "DVM U12w 2023"]
[Site "Magdeburg"]
[Date "2023.12.28"]
[Round "3"]
[White "Daaboul, Dima"]
[Black "Oschinski, Mathilda"]
[Result "1/2-1/2"]
[WhiteElo "1184"]
[BlackElo "1155"]
[PlyCount "40"]
[EventDate "2022.12.27"]
[EventType "team-tourn"]
[EventRounds "7"]
[EventCountry "GER"]
[TimeControl "40/5400+30:1800+30"]
[WhiteClock "0:57:33"]
[BlackClock "0:12:20"]

1. e4 {[%emt 0:00:03]} c5 {[%emt 0:00:05]} 2. Nc3 {[%emt 0:00:08]} Nc6 {[%emt 0:00:09]} 3. f4 {[%emt 0:00:11]} e6 {[%emt 0:02:19]} 4. Nf3 {[%emt 0:00:45]} g6 {[%emt 0:00:54]} 5. Bb5 {[%emt 0:01:16]} Qc7 {[%emt 0:06:32]} 6. d3 {[%emt 0:02:07]} a6 {[%emt 0:01:01]} 7. Bxc6 {[%emt 0:00:45]} Qxc6 {[%emt 0:00:43]} 8. O-O {[%emt 0:01:43]} Bg7 {[%emt 0:02:08]} 9. Bd2 {[%emt 0:01:39]} Ne7 {[%emt 0:11:44]} 10. Qe1 {[%emt 0:02:46]} O-O {[%emt 0:03:42]} 11. Qh4 {[%emt 0:05:14]} f6 {[%emt 0:02:22]} 12. Ne2 {[%emt 0:09:27]} Qd6 {[%emt 0:11:07]} 13. Ng3 {[%emt 0:01:59]} b5 {[%emt 0:07:29]} 14. Rae1 {[%emt 0:01:38]} Re8 {[%emt 0:12:56]} 15. e5 {[%emt 0:01:20]} fxe5 {[%emt 0:01:12]} 16. fxe5 {[%emt 0:00:19]} Qc6 {[%emt 0:07:22]} 17. Bh6 {[%emt 0:00:24]} Nf5 {[%emt 0:08:09]} 18. Nxf5 {[%emt 0:02:14]} exf5 {[%emt 0:00:51]} 19. Ng5 {[%emt 0:03:00]} Bb7 {[%emt 0:03:13]} 20. Rf2 {[%emt 0:05:59]} Bxe5 {[%emt 0:04:12] normal} 1/2-1/2

[Event "DVM U12w 2023"]
[Site "Magdeburg"]
[Date "2023.12.28"]
[Round "3"]
[White "Stepanova, Anhelina"]
[Black "Kuhlmann, Naya"]
[Result "1-0"]
[WhiteElo "1172"]
[BlackElo "1005"]
[PlyCount "67"]
[EventDate "2022.12.27"]
[EventType "team-tourn"]
[EventRounds "7"]
[EventCountry "GER"]
[TimeControl "40/5400+30:1800+30"]
[WhiteClock "1:24:47"]
[BlackClock "0:56:17"]

1. d4 {[%emt 0:00:31]} d5 {[%emt 0:00:03]} 2. Bf4 {[%emt 0:00:00]} Nc6 {[%emt 0:00:34]} 3. Nf3 {[%emt 0:00:00]} Nf6 {[%emt 0:00:19]} 4. h3 {[%emt 0:00:06]} Bf5 {[%emt 0:00:16]} 5. e3 {[%emt 0:04:33]} e6 {[%emt 0:03:12]} 6. Nbd2 {[%emt 0:01:02]} Bd6 {[%emt 0:01:23]} 7. Ne5 {[%emt 0:00:29]} Nxe5 {[%emt 0:02:48]} 8. dxe5 {[%emt 0:00:24]} Bxe5 {[%emt 0:00:37]} 9. Bxe5 {[%emt 0:00:12]} O-O {[%emt 0:00:24]} 10. Bd3 {[%emt 0:00:24]} Bg6 {[%emt 0:00:57]} 11. Qf3 {[%emt 0:00:40]} Bh5 {[%emt 0:03:21]} 12. g4 {[%emt 0:00:30]} Bg6 {[%emt 0:00:30]} 13. O-O-O {[%emt 0:00:28]} Bxd3 {[%emt 0:00:29]} 14. cxd3 {[%emt 0:00:11]} Nd7 {[%emt 0:01:01]} 15. Bc3 {[%emt 0:00:24]} Nb6 {[%emt 0:00:30]} 16. h4 {[%emt 0:00:32]} c5 {[%emt 0:00:51]} 17. Nb3 {[%emt 0:03:14]} Qc7 18. Qf4 {[%emt 0:00:00]} Qc8 {[%emt 0:03:46]} 19. Qg5 {[%emt 0:00:00]} f6 {[%emt 0:00:46]} 20. Qf4 {[%emt 0:00:00]} e5 {[%emt 0:01:20]} 21. Qf5 {[%emt 0:00:17]} Qc7 {[%emt 0:00:57]} 22. Kb1 {[%emt 0:00:41]} c4 {[%emt 0:04:16]} 23. dxc4 {[%emt 0:00:51]} Qxc4 {[%emt 0:01:31]} 24. Qe6+ {[%emt 0:00:45]} Kh8 {[%emt 0:02:51]} 25. Nd2 {[%emt 0:00:47]} Qc7 {[%emt 0:03:14]} 26. Rc1 {[%emt 0:00:21]} Rfe8 {[%emt 0:02:01]} 27. Qf5 {[%emt 0:00:32]} Qd6 {[%emt 0:02:57]} 28. Rhd1 {[%emt 0:00:53]} Rac8 {[%emt 0:00:42]} 29. Ne4 {[%emt 0:00:41]} Qe7 {[%emt 0:02:43]} 30. Ng3 {[%emt 0:02:03]} Rc7 {[%emt 0:05:30]} 31. Ba5 {[%emt 0:00:24]} Rec8 {[%emt 0:00:33]} 32. Bxb6 {[%emt 0:00:29]} axb6 {[%emt 0:00:08]} 33. Qxc8+ {[%emt 0:00:13]} Rxc8 {[%emt 0:00:13]} 34. Rxc8+ {[%emt 0:00:06] normal} 1-0

[Event "DVM U12w 2023"]
[Site "Magdeburg"]
[Date "2023.12.28"]
[Round "3"]
[White "Subocz, Barbara"]
[Black "He, Siqi"]
[Result "1-0"]
[WhiteElo "1169"]
[BlackElo "812"]
[PlyCount "59"]
[EventDate "2022.12.27"]
[EventType "team-tourn"]
[EventRounds "7"]
[EventCountry "GER"]
[TimeControl "40/5400+30:1800+30"]
[WhiteClock "1:10:14"]
[BlackClock "1:21:33"]

1. e4 {[%emt 0:00:16]} e5 {[%emt 0:00:02]} 2. Nc3 {[%emt 0:00:06]} Nf6 {[%emt 0:00:14]} 3. f4 {[%emt 0:00:07]} exf4 {[%emt 0:00:16]} 4. Nf3 {[%emt 0:00:15]} Be7 {[%emt 0:00:41]} 5. d4 {[%emt 0:00:18]} d5 {[%emt 0:00:15]} 6. e5 {[%emt 0:05:51]} Ne4 {[%emt 0:00:28]} 7. Bd3 {[%emt 0:01:12]} Nxc3 {[%emt 0:00:36]} 8. bxc3 {[%emt 0:00:11]} Nc6 {[%emt 0:01:12]} 9. Bxf4 {[%emt 0:00:20]} O-O {[%emt 0:00:45]} 10. O-O {[%emt 0:00:16]} Bg4 {[%emt 0:01:07]} 11. h3 {[%emt 0:01:13]} Bxf3 {[%emt 0:00:30]} 12. Qxf3 {[%emt 0:00:35]} Re8 {[%emt 0:01:22]} 13. Be3 {[%emt 0:00:52]} Qd7 {[%emt 0:02:18]} 14. Qxf7+ {[%emt 0:00:35]} Kh8 {[%emt 1:27:44]} 15. Bh6 {[%emt 1:25:53]} Rg8 {[%emt 0:00:30]} 16. Be3 {[%emt 0:00:00]} Raf8 {[%emt 0:00:00]} 17. Qh5 {[%emt 0:00:00]} g6 {[%emt 0:00:00]} 18. Qh6 {[%emt 0:00:00]} Nd8 {[%emt 0:00:00]} 19. Bd2 {[%emt 0:00:00]} c5 {[%emt 0:00:00]} 20. Rxf8 {[%emt 0:00:00]} Bxf8 {[%emt 0:00:00]} 21. Qh4 {[%emt 0:00:00]} cxd4 {[%emt 0:00:00]} 22. cxd4 {[%emt 0:00:00]} Be7 {[%emt 0:00:00]} 23. Qf4 {[%emt 0:00:00]} Ne6 {[%emt 0:00:00]} 24. Qg4 {[%emt 0:00:00]} h5 {[%emt 0:01:14]} 25. Qg3 {[%emt 0:00:00]} Nxd4 {[%emt 0:00:00]} 26. Qe3 {[%emt 0:00:00]} Rc8 {[%emt 0:00:00]} 27. Qh6+ {[%emt 0:00:00]} Kg8 {[%emt 0:00:00]} 28. Bxg6 {[%emt 0:00:00]} Nxc2 {[%emt 0:00:00]} 29. Qh7+ {[%emt 0:00:00]} Kf8 {[%emt 0:00:00]} 30. Qf7# {[%emt 0:00:00] normal} 1-0

[Event "DVM U12w 2023"]
[Site "Magdeburg"]
[Date "2023.12.28"]
[Round "3"]
[White "Xu, Dorothea Sicheng"]
[Black "Zhou, Leyi Charlotte"]
[Result "0-1"]
[WhiteElo "1118"]
[BlackElo "1335"]
[PlyCount "162"]
[EventDate "2022.12.27"]
[EventType "team-tourn"]
[EventRounds "7"]
[EventCountry "GER"]
[TimeControl "40/5400+30:1800+30"]
[WhiteClock "0:48:54"]
[BlackClock "1:10:07"]

1. e4 {[%emt 0:00:02]} e5 {[%emt 0:00:11]} 2. Nc3 {[%emt 0:00:09]} Nc6 {[%emt 0:00:33]} 3. g3 {[%emt 0:00:07]} Nf6 {[%emt 0:00:25]} 4. Bg2 {[%emt 0:00:12]} Bc5 {[%emt 0:00:40]} 5. Nge2 {[%emt 0:00:23]} Ng4 {[%emt 0:00:53]} 6. O-O {[%emt 0:01:09]} d6 {[%emt 0:00:38]} 7. d3 {[%emt 0:01:14]} O-O {[%emt 0:03:02]} 8. a3 {[%emt 0:05:10]} Qf6 {[%emt 0:03:33]} 9. Qe1 {[%emt 0:04:35]} Nd4 {[%emt 0:02:42]} 10. Nxd4 {[%emt 0:01:13]} Bxd4 {[%emt 0:00:09]} 11. Nd5 {[%emt 0:01:21]} Qd8 {[%emt 0:01:09]} 12. c3 {[%emt 0:02:04]} Bb6 {[%emt 0:01:42]} 13. h3 {[%emt 0:03:14]} Nf6 {[%emt 0:00:36]} 14. Bg5 {[%emt 0:00:58]} Kh8 {[%emt 0:01:34]} 15. Bxf6 {[%emt 0:01:20]} gxf6 {[%emt 0:00:17]} 16. Nxb6 {[%emt 0:01:29]} axb6 {[%emt 0:00:09]} 17. d4 {[%emt 0:00:28]} Bd7 {[%emt 0:01:20]} 18. Qd1 {[%emt 0:07:59]} Rg8 {[%emt 0:05:08]} 19. Re1 {[%emt 0:02:50]} Qf8 {[%emt 0:02:15]} 20. a4 {[%emt 0:04:18]} Qh6 {[%emt 0:00:41]} 21. Kh2 {[%emt 0:00:44]} Bg4 {[%emt 0:01:31]} 22. Qc1 {[%emt 0:03:40]} Qxc1 {[%emt 0:00:36]} 23. Rexc1 {[%emt 0:00:10]} Bd7 {[%emt 0:00:43]} 24. b3 {[%emt 0:00:37]} Ra5 {[%emt 0:02:54]} 25. Kg1 {[%emt 0:03:31]} Rga8 {[%emt 0:01:04]} 26. Rd1 {[%emt 0:03:18]} b5 {[%emt 0:00:19]} 27. dxe5 {[%emt 0:01:46]} fxe5 {[%emt 0:00:28]} 28. Rd3 {[%emt 0:04:11]} bxa4 {[%emt 0:01:42]} 29. bxa4 {[%emt 0:00:17]} Rxa4 {[%emt 0:00:14]} 30. Rxa4 {[%emt 0:01:01]} Bxa4 {[%emt 0:01:36]} 31. Rf3 {[%emt 0:00:47]} Rf8 {[%emt 0:01:23]} 32. c4 {[%emt 0:01:16]} Bc6 {[%emt 0:00:34]} 33. Rb3 {[%emt 0:00:29]} Rb8 {[%emt 0:01:37]} 34. Kf1 {[%emt 0:00:59]} Kg7 {[%emt 0:00:38]} 35. f4 {[%emt 0:02:02]} f6 {[%emt 0:02:45]} 36. fxe5 {[%emt 0:01:28]} fxe5 {[%emt 0:00:09]} 37. g4 {[%emt 0:01:11]} Ra8 {[%emt 0:00:49]} 38. Rc3 {[%emt 0:00:57]} Ra1+ {[%emt 0:00:47]} 39. Kf2 {[%emt 0:00:09]} Ra2+ {[%emt 0:00:16]} 40. Kf1 {[%emt 0:00:11]} Kg6 {[%emt 0:01:26]} 41. c5 {[%emt 0:30:49]} Ra4 {[%emt 0:31:59]} 42. cxd6 {[%emt 0:00:57]} cxd6 {[%emt 0:00:12]} 43. Re3 {[%emt 0:00:38]} Kg5 {[%emt 0:00:49]} 44. Re2 {[%emt 0:01:19]} Ra1+ {[%emt 0:00:41]} 45. Kf2 {[%emt 0:00:20]} Ra4 {[%emt 0:00:20]} 46. Kf1 {[%emt 0:00:20]} Bb5 {[%emt 0:00:10]} 47. Ke1 {[%emt 0:00:11]} Bxe2 {[%emt 0:00:07]} 48. Kxe2 {[%emt 0:00:12]} Kf4 {[%emt 0:00:17]} 49. Kd3 {[%emt 0:00:10]} Ra8 {[%emt 0:00:25]} 50. Kc4 {[%emt 0:00:20]} Rb8 {[%emt 0:00:22]} 51. Kb3 {[%emt 0:00:12]} b5 {[%emt 0:00:07]} 52. Kb4 {[%emt 0:00:05]} Kg3 {[%emt 0:00:41]} 53. Bf1 {[%emt 0:00:26]} Kf3 {[%emt 0:00:35]} 54. Bxb5 {[%emt 0:00:33]} Kxe4 {[%emt 0:00:28]} 55. Kc4 {[%emt 0:00:18]} d5+ {[%emt 0:00:10]} 56. Kc5 {[%emt 0:00:16]} Rxb5+ {[%emt 0:00:12]} 57. Kxb5 {[%emt 0:00:14]} d4 {[%emt 0:00:05]} 58. Kc4 {[%emt 0:00:25]} Ke3 {[%emt 0:00:07]} 59. Kd5 {[%emt 0:00:11]} d3 {[%emt 0:00:06]} 60. Kxe5 {[%emt 0:00:07]} d2 {[%emt 0:00:06]} 61. Kf5 {[%emt 0:00:34]} d1=Q {[%emt 0:00:10]} 62. Ke5 {[%emt 0:00:16]} Qd4+ {[%emt 0:00:11]} 63. Kf5 {[%emt 0:00:14]} Qf4+ {[%emt 0:00:06]} 64. Ke6 {[%emt 0:00:10]} Qg5 {[%emt 0:00:29]} 65. Kd6 {[%emt 0:00:19]} h5 {[%emt 0:00:12]} 66. gxh5 {[%emt 0:00:25]} Qxh5 {[%emt 0:00:06]} 67. Ke6 {[%emt 0:00:08]} Qxh3+ {[%emt 0:00:06]} 68. Kd5 {[%emt 0:00:13]} Qg4 {[%emt 0:00:06]} 69. Ke5 {[%emt 0:00:15]} Qc4 {[%emt 0:00:16]} 70. Kf5 {[%emt 0:00:10]} Qd4 {[%emt 0:00:05]} 71. Kg5 {[%emt 0:00:09]} Qe4 {[%emt 0:00:06]} 72. Kf6 {[%emt 0:00:15]} Kf4 {[%emt 0:00:15]} 73. Kf7 {[%emt 0:00:24]} Qe5 {[%emt 0:00:08]} 74. Kg6 {[%emt 0:00:13]} Kg4 {[%emt 0:00:06]} 75. Kf7 {[%emt 0:00:18]} Qd6 {[%emt 0:00:07]} 76. Kg7 {[%emt 0:00:10]} Qe6 {[%emt 0:00:06]} 77. Kh7 {[%emt 0:00:17]} Qf6 {[%emt 0:00:08]} 78. Kg8 {[%emt 0:00:10]} Qe7 {[%emt 0:00:10]} 79. Kh8 {[%emt 0:00:09]} Kg5 {[%emt 0:00:07]} 80. Kg8 {[%emt 0:00:06]} Kf6 {[%emt 0:00:07]} 81. Kh8 {[%emt 0:00:09]} Qg7# {[%emt 0:00:39] normal} 0-1

[Event "DVM U12w 2023"]
[Site "Magdeburg"]
[Date "2023.12.28"]
[Round "3"]
[White "Piffczyk, Sandra"]
[Black "Grey, Paula"]
[Result "1/2-1/2"]
[WhiteElo "1105"]
[BlackElo "1008"]
[PlyCount "46"]
[EventDate "2022.12.27"]
[EventType "team-tourn"]
[EventRounds "7"]
[EventCountry "GER"]
[TimeControl "40/5400+30:1800+30"]
[WhiteClock "0:19:28"]
[BlackClock "0:19:12"]

1. e4 {[%emt 0:00:04]} e5 {[%emt 0:00:07]} 2. Nf3 {[%emt 0:00:07]} Nc6 {[%emt 0:00:08]} 3. Nc3 {[%emt 0:00:12]} Nf6 {[%emt 0:00:25]} 4. Bb5 {[%emt 0:00:22]} Bc5 {[%emt 0:02:33]} 5. d3 {[%emt 0:02:14]} h6 {[%emt 0:02:03]} 6. h3 {[%emt 0:07:15]} Qe7 {[%emt 0:05:45]} 7. Bd2 {[%emt 0:03:02]} O-O {[%emt 0:02:23]} 8. Qe2 {[%emt 0:09:05]} d6 {[%emt 0:04:05]} 9. Na4 {[%emt 0:00:58]} Bd4 {[%emt 0:06:48]} 10. c3 {[%emt 0:05:05]} Bb6 {[%emt 0:04:52]} 11. Nxb6 {[%emt 0:00:35]} axb6 {[%emt 0:01:38]} 12. O-O {[%emt 0:07:16]} Be6 {[%emt 0:03:01]} 13. d4 {[%emt 0:03:23]} exd4 {[%emt 0:04:54]} 14. cxd4 {[%emt 0:00:39]} Bxa2 {[%emt 0:02:56]} 15. Rfe1 {[%emt 0:06:12]} Rfe8 {[%emt 0:08:52]} 16. Bd3 {[%emt 0:09:54]} h5 {[%emt 0:06:53]} 17. Bc3 {[%emt 0:01:54]} Nd7 {[%emt 0:02:51]} 18. Nd2 {[%emt 0:07:50]} g6 {[%emt 0:03:35]} 19. b3 {[%emt 0:02:35]} f6 {[%emt 0:07:21]} 20. f3 {[%emt 0:09:56]} Kf8 {[%emt 0:09:22]} 21. Bb1 {[%emt 0:02:43]} Bxb1 {[%emt 0:00:30]} 22. Rxa8 {[%emt 0:00:15]} Rxa8 {[%emt 0:00:19]} 23. Rxb1 {[%emt 0:00:56]} Kg7 {[%emt 0:01:27] normal} 1/2-1/2

[Event "DVM U12w 2023"]
[Site "Magdeburg"]
[Date "2023.12.28"]
[Round "3"]
[White "Schmidt Guevara, Daniela"]
[Black "Gelbach, Amelia"]
[Result "1-0"]
[WhiteElo "1083"]
[BlackElo "841"]
[PlyCount "89"]
[EventDate "2022.12.27"]
[EventType "team-tourn"]
[EventRounds "7"]
[EventCountry "GER"]
[TimeControl "40/5400+30:1800+30"]
[WhiteClock "1:20:07"]
[BlackClock "1:21:40"]

1. e4 {[%emt 0:00:04]} c5 {[%emt 0:00:05]} 2. Nf3 {[%emt 0:00:29]} d6 {[%emt 0:00:08]} 3. Bc4 {[%emt 0:00:46]} Nc6 {[%emt 0:00:16]} 4. Nc3 {[%emt 0:00:26]} Nf6 {[%emt 0:00:10]} 5. d3 {[%emt 0:00:24]} g6 {[%emt 0:00:08]} 6. Ng5 {[%emt 0:00:47]} e6 {[%emt 0:00:53]} 7. Bf4 {[%emt 0:00:52]} Bg7 {[%emt 0:00:36]} 8. O-O {[%emt 0:02:03]} O-O {[%emt 0:00:08]} 9. a3 {[%emt 0:01:02]} a6 {[%emt 0:00:09]} 10. Re1 {[%emt 0:01:41]} b5 {[%emt 0:00:09]} 11. Bb3 {[%emt 0:00:30]} Bb7 {[%emt 0:00:23]} 12. e5 {[%emt 0:01:23]} d5 {[%emt 0:00:54]} 13. exf6 {[%emt 0:00:45]} Qxf6 {[%emt 0:00:59]} 14. Qd2 {[%emt 0:01:35]} d4 {[%emt 0:01:56]} 15. Nce4 {[%emt 0:00:41]} Qf5 {[%emt 0:00:56]} 16. Nd6 {[%emt 0:00:36]} Qf6 {[%emt 0:02:14]} 17. Nxb7 {[%emt 0:00:22]} Qe7 {[%emt 0:00:41]} 18. Bd6 {[%emt 0:00:42]} Qxb7 {[%emt 0:00:29]} 19. Bxf8 {[%emt 0:00:19]} Rxf8 {[%emt 0:00:13]} 20. Ne4 {[%emt 0:01:25]} a5 {[%emt 0:00:31]} 21. Nd6 {[%emt 0:00:34]} Qc7 {[%emt 0:00:45]} 22. Nxb5 {[%emt 0:00:35]} Qb6 {[%emt 0:01:50]} 23. Ba4 {[%emt 0:00:39]} Re8 {[%emt 0:02:23]} 24. Na7 {[%emt 0:02:09]} Qxa7 {[%emt 0:01:25]} 25. Bxc6 {[%emt 0:00:11]} Rc8 {[%emt 0:00:12]} 26. Bf3 {[%emt 0:00:41]} Qb8 {[%emt 0:00:52]} 27. Qxa5 {[%emt 0:00:25]} Be5 {[%emt 0:02:20]} 28. g3 {[%emt 0:01:31]} Bf6 {[%emt 0:00:26]} 29. b3 {[%emt 0:01:29]} Qc7 {[%emt 0:01:20]} 30. Qxc7 {[%emt 0:00:19]} Rxc7 {[%emt 0:00:07]} 31. b4 {[%emt 0:00:38]} cxb4 {[%emt 0:00:08]} 32. axb4 {[%emt 0:00:21]} Rxc2 {[%emt 0:00:14]} 33. Ra8+ {[%emt 0:00:19]} Kg7 {[%emt 0:00:11]} 34. b5 {[%emt 0:00:23]} Rb2 {[%emt 0:00:30]} 35. Rb8 {[%emt 0:00:31]} Be7 {[%emt 0:00:35]} 36. b6 {[%emt 0:00:18]} Bd6 {[%emt 0:00:18]} 37. Rb7 {[%emt 0:00:17]} Bc5 {[%emt 0:01:04]} 38. Rxe6 {[%emt 0:02:54]} Rb1+ {[%emt 0:00:00]} 39. Kg2 {[%emt 0:00:00]} Rb3 {[%emt 0:00:24]} 40. Be2 {[%emt 0:00:00]} Kg8 {[%emt 0:01:53]} 41. Rb8+ {[%emt 0:30:07]} Kg7 {[%emt 0:30:13]} 42. Rc6 {[%emt 0:00:16]} Rc3 {[%emt 0:00:41]} 43. b7 {[%emt 0:00:21]} Bb4 {[%emt 0:00:24]} 44. Rbc8 {[%emt 0:00:50]} Rxc6 {[%emt 0:00:37]} 45. Rxc6 {[%emt 0:00:13] normal} 1-0

[Event "DVM U12w 2023"]
[Site "Magdeburg"]
[Date "2023.12.28"]
[Round "3"]
[White "Prasannavenkatesan, Ananya"]
[Black "Kuebart, Ela Marie"]
[Result "1-0"]
[WhiteElo "1045"]
[BlackElo "1325"]
[PlyCount "49"]
[EventDate "2022.12.27"]
[EventType "team-tourn"]
[EventRounds "7"]
[EventCountry "GER"]
[TimeControl "40/5400+30:1800+30"]
[WhiteClock "1:18:46"]
[BlackClock "0:50:43"]

1. e4 {[%emt 0:00:01]} e5 {[%emt 0:00:04]} 2. Nc3 {[%emt 0:00:05]} Nf6 {[%emt 0:00:16]} 3. f4 {[%emt 0:00:05]} d6 {[%emt 0:01:17]} 4. Nf3 {[%emt 0:00:10]} Nc6 {[%emt 0:01:14]} 5. d4 {[%emt 0:01:25]} Bg4 {[%emt 0:02:22]} 6. d5 {[%emt 0:03:12]} Nd4 {[%emt 0:05:18]} 7. Be3 {[%emt 0:00:26]} Nxf3+ {[%emt 0:01:26]} 8. gxf3 {[%emt 0:00:12]} Bd7 {[%emt 0:00:56]} 9. Qd2 {[%emt 0:00:21]} Nh5 {[%emt 0:03:47]} 10. O-O-O {[%emt 0:00:38]} g6 {[%emt 0:03:48]} 11. fxe5 {[%emt 0:00:45]} dxe5 {[%emt 0:01:41]} 12. h4 {[%emt 0:02:41]} Be7 {[%emt 0:02:47]} 13. Bg5 {[%emt 0:00:58]} f6 {[%emt 0:01:46]} 14. Be3 {[%emt 0:00:43]} a5 {[%emt 0:04:51]} 15. Bc4 {[%emt 0:01:11]} c5 {[%emt 0:05:37]} 16. d6 {[%emt 0:00:47]} Bf8 {[%emt 0:01:11]} 17. Bxc5 {[%emt 0:00:08]} Nf4 {[%emt 0:05:35]} 18. Nd5 {[%emt 0:05:23]} Nxd5 {[%emt 0:02:05]} 19. Qxd5 {[%emt 0:00:42]} Qb8 {[%emt 0:03:14]} 20. Qf7+ {[%emt 0:02:00]} Kd8 {[%emt 0:00:20]} 21. Bb6+ {[%emt 0:00:51]} Kc8 {[%emt 0:00:23]} 22. Be6 {[%emt 0:00:57]} Qxd6 {[%emt 0:01:19]} 23. Rxd6 {[%emt 0:00:11]} Bxd6 {[%emt 0:00:19]} 24. Qxd7+ {[%emt 0:00:15]} Kb8 {[%emt 0:00:11]} 25. Qxd6# {[%emt 0:00:07] normal} 1-0

[Event "DVM U12w 2023"]
[Site "Magdeburg"]
[Date "2023.12.28"]
[Round "3"]
[White "Artemenko, Isabella"]
[Black "Werner, Amelie"]
[Result "1/2-1/2"]
[WhiteElo "1041"]
[BlackElo "1311"]
[PlyCount "98"]
[EventDate "2022.12.27"]
[EventType "team-tourn"]
[EventRounds "7"]
[EventCountry "GER"]
[TimeControl "40/5400+30:1800+30"]
[WhiteClock "0:22:19"]
[BlackClock "0:48:29"]

1. d4 {[%emt 0:00:01]} d5 {[%emt 0:00:06]} 2. Bf4 {[%emt 0:00:06]} Nf6 {[%emt 0:00:16]} 3. e3 {[%emt 0:00:10]} Bf5 {[%emt 0:00:09]} 4. c3 {[%emt 0:00:54]} e6 {[%emt 0:01:03]} 5. Nd2 {[%emt 0:01:26]} Be7 {[%emt 0:01:43]} 6. Ngf3 {[%emt 0:01:51]} Nc6 {[%emt 0:00:37]} 7. Ne5 {[%emt 0:02:36]} Nxe5 {[%emt 0:01:38]} 8. Bxe5 {[%emt 0:00:11]} O-O {[%emt 0:00:15]} 9. Nf3 {[%emt 0:03:21]} h6 {[%emt 0:01:49]} 10. Bg3 {[%emt 0:12:07]} c6 {[%emt 0:01:40]} 11. Bd3 {[%emt 0:03:57]} Bxd3 {[%emt 0:05:28]} 12. Qxd3 {[%emt 0:00:13]} Ne4 {[%emt 0:00:11]} 13. Nd2 {[%emt 0:10:13]} Nxd2 {[%emt 0:03:47]} 14. Qxd2 {[%emt 0:00:09]} Bh4 {[%emt 0:00:09]} 15. Bf4 {[%emt 0:06:31]} Qf6 {[%emt 0:00:21]} 16. h3 {[%emt 0:05:12]} Qg6 {[%emt 0:01:22]} 17. O-O {[%emt 0:01:27]} Rfd8 {[%emt 0:03:27]} 18. Rac1 {[%emt 0:01:27]} Rd7 {[%emt 0:05:28]} 19. Qc2 {[%emt 0:00:41]} Qxc2 {[%emt 0:00:15]} 20. Rxc2 {[%emt 0:00:05]} a5 {[%emt 0:00:40]} 21. Rd1 {[%emt 0:04:03]} b5 {[%emt 0:01:54]} 22. Kh2 {[%emt 0:10:51]} Kh7 {[%emt 0:00:19]} 23. Bg3 {[%emt 0:03:05]} Bf6 {[%emt 0:09:24]} 24. f3 {[%emt 0:01:19]} Re8 {[%emt 0:06:06]} 25. Rf1 {[%emt 0:07:52]} g6 {[%emt 0:05:06]} 26. e4 {[%emt 0:03:18]} Bg7 {[%emt 0:01:27]} 27. Re1 {[%emt 0:00:34]} Rde7 {[%emt 0:00:41]} 28. Rce2 {[%emt 0:00:24]} Bf8 {[%emt 0:00:37]} 29. Bd6 {[%emt 0:00:34]} Rd7 {[%emt 0:00:19]} 30. Bxf8 {[%emt 0:00:08]} Rxf8 {[%emt 0:00:08]} 31. exd5 {[%emt 0:00:16]} Rxd5 {[%emt 0:00:29]} 32. Re5 {[%emt 0:00:08]} Rfd8 {[%emt 0:01:10]} 33. Rxd5 {[%emt 0:00:53]} Rxd5 {[%emt 0:00:10]} 34. Re5 {[%emt 0:00:08]} Kg7 {[%emt 0:00:36]} 35. Re3 {[%emt 0:01:32]} Kf6 {[%emt 0:00:54]} 36. g4 {[%emt 0:00:27]} h5 {[%emt 0:00:22]} 37. Kg3 {[%emt 0:00:12]} hxg4 {[%emt 0:00:33]} 38. hxg4 {[%emt 0:00:09]} Kg7 {[%emt 0:01:23]} 39. f4 {[%emt 0:00:41]} Rd6 {[%emt 0:00:14]} 40. Kf3 {[%emt 0:00:22]} Kh6 {[%emt 0:00:48]} 41. Re1 {[%emt 0:30:39]} Kg7 {[%emt 0:30:49]} 42. Re2 {[%emt 0:00:29]} a4 {[%emt 0:00:39]} 43. Re1 {[%emt 0:00:39]} Rd8 {[%emt 0:00:28]} 44. Re5 {[%emt 0:00:27]} Rd6 {[%emt 0:00:32]} 45. g5 {[%emt 0:00:25]} Kf8 {[%emt 0:00:30]} 46. Ke3 {[%emt 0:00:11]} Kg7 {[%emt 0:00:11]} 47. Kf3 {[%emt 0:00:06]} Kf8 {[%emt 0:00:06]} 48. Ke3 {[%emt 0:00:06]} Kg7 {[%emt 0:00:06]} 49. Kf3 {[%emt 0:00:05]} Kf8 {[%emt 0:00:06] normal} 1/2-1/2